{"text_format":"1","workbook":"xlsx","n_sheets":4,"sheets":["Прога","Лицевая","оборотная","Настройки "],"not_rendered":{"charts":0,"images":0,"macros":1,"external_links":1,"defined_names":31,"comments":1,"pivot_tables":0},"unopened":[],"bounds":{"document_bytes":16777216,"sheet_cells":100000,"rows_first":2000,"rows_last":500,"rows_between":2000,"halvings":0,"cell_chars":16384,"cell_head_chars":4096},"cells_cut":0,"cells_raw":0,"read":"whole","date_system":"1900"}

{"sheet":"Прога","index":0,"n_rows":22,"n_cols":9,"rows_kept":22,"cut":false,"hidden":false,"merged":[[31,3,31,8],[26,1,26,2],[24,1,24,2],[25,1,25,2],[31,1,31,2],[24,3,24,8],[25,3,25,8],[26,3,26,8],[27,3,27,8],[28,3,28,8],[29,3,29,8],[30,3,30,8],[28,1,28,2],[29,1,29,2],[30,1,30,2],[27,1,27,2],[21,1,21,2],[22,1,22,2],[23,1,23,2],[15,1,16,8],[17,1,17,8],[18,1,18,8],[20,1,20,2],[19,1,19,8],[20,3,20,8],[21,3,21,8],[22,3,22,8],[23,3,23,8],[14,1,14,8],[0,2,1,3],[2,2,2,3],[3,2,3,3],[4,1,5,1],[4,2,5,2],[4,3,5,3],[9,7,9,8],[10,1,10,8],[12,1,12,8],[4,8,5,8],[7,1,8,1],[7,2,8,2],[7,3,8,3],[7,8,8,8]]}
[null,null,"Автозаполнение Наряда"]
[]
[null,null,"ДД ЦЭС"]
[null,null,"Дежурный диспетчер ЦЭС Куренков В.А. гр.V"]
[null,"Тех. Мер.","Время выдачи наряда","Время начала работ",null,null,null,null,"Время окончания работ"]
[]
[null,"Не требуются","12.00","13.00",null,null,null,null,"18.00"]
[null,"Выдающий наряд","Ответственный руководитель работ","Производитель работ",null,null,null,null,"Допускающий"]
[]
[null,"Матушкин С.Г. гр.V","Матушкин С.Г. гр.V","Протопопов А.С. гр.IV",null,null,null,"Протопопов А.С. гр.IV"]
[null,"Члены бригады"]
[null,"Шелашников А.П. гр.IV","Колчанов К.В. гр.III"," ",null,null,null,null," "]
[null,"Профессия"]
[null," - рабочий люльки"," - машинст АГП"]
[null,"Поручается: "]
[null,"КТП-169 ВЛИ-0,4кВ Ф-3 опора №300/18 ул.Железнодорожная, уч.145к. Подключение по указанию №874"]
[]
[null,"Место работы"]
[null,"ТП-169 ВЛИ-0,4кВ Ф-3 опора    №300/18 "]
[null,"МЕРОПРИЯТИЯ ПО ПОДГОТОВКЕ РАБОЧИХ МЕСТ К ВЫПОЛНЕНИЮ РАБОТ"]
[null,"Наименование  электроустановок,  в  которых  нужно провести  отключения  и  установить  заземления",null,"Что должно быть отключено и где заземлено"]
[null,"Не требуются",null,"Не требуются"]

{"sheet":"Лицевая","index":1,"n_rows":62,"n_cols":14,"rows_kept":62,"cut":false,"hidden":false,"merged":[[45,1,45,4],[45,7,45,8],[47,2,47,3],[9,1,9,2],[46,1,46,2],[41,1,41,14],[42,1,42,14],[9,6,9,8],[9,10,9,14],[9,3,9,5],[14,1,14,14],[15,1,15,14],[16,1,16,14],[32,8,32,14],[33,8,33,14],[23,1,23,3],[22,1,22,3],[26,8,26,14],[28,8,28,14],[46,9,46,13],[46,6,46,8],[40,1,40,14],[28,1,28,7],[29,1,29,7],[50,1,53,3],[10,8,10,9],[10,10,10,14],[11,10,11,14],[11,4,11,7],[27,8,27,14],[34,8,34,14],[31,1,31,7],[32,1,32,7],[44,3,44,4],[34,1,34,7],[53,4,53,7],[11,1,11,2],[51,4,51,7],[51,10,51,14],[31,8,31,14],[33,1,33,7],[48,1,48,14],[17,1,17,14],[50,4,50,7],[50,10,50,14],[36,1,36,7],[10,4,10,7],[44,6,44,8],[64,1,64,10],[37,1,37,7],[36,8,36,14],[37,8,37,14],[55,7,57,8],[55,9,57,14],[58,1,58,6],[58,7,58,8],[58,9,58,14],[49,1,49,7],[49,8,49,14],[50,8,53,9],[53,10,53,14],[62,1,62,6],[62,7,62,8],[62,9,62,14],[46,3,46,4],[47,7,47,8],[54,1,54,14],[44,9,44,13],[43,1,43,2],[43,7,43,8],[44,1,44,2],[61,1,61,6],[4,1,4,14],[29,8,29,14],[30,8,30,14],[21,1,21,14],[19,1,19,14],[18,3,18,14],[20,1,20,14],[30,1,30,7],[12,4,12,14],[13,1,13,14],[61,7,61,8],[61,9,61,14],[59,1,59,6],[59,7,59,8],[59,9,59,14],[60,1,60,6],[60,7,60,8],[60,9,60,14],[55,1,57,6],[28,18,28,19],[33,15,33,17],[23,15,23,17],[17,15,17,17],[18,15,18,17],[19,15,19,17],[21,15,21,17],[24,15,24,17],[26,15,26,17],[5,18,5,19],[7,15,7,17],[9,15,9,17],[11,15,11,17],[13,15,13,17],[15,15,15,17],[8,18,8,20],[10,18,10,20],[26,18,26,19],[39,1,39,4],[39,6,39,7],[1,15,1,17],[3,15,3,17],[5,15,5,17],[28,15,28,17],[2,1,2,6],[3,1,3,6],[3,8,3,10],[3,13,3,14],[6,1,6,14],[35,1,35,7],[35,8,35,14],[1,7,2,14],[7,13,7,14],[8,1,8,4],[8,6,8,8],[8,10,8,14],[18,1,18,2],[25,1,25,14],[10,1,10,3],[12,1,12,3],[26,1,26,7],[27,1,27,7]]}
[]
[null,null,null,null,null,null,null,"Укомплектованность бригады электрозащитными средствами , инструментом, приспособлениями и СИЗ проверил:"]
[]
[null,null,null,null,null,null,null,null,{"$f":"REPT('Настройки '!C31,1)","v":"Матушкин С.Г. гр.V"},null,null,null,null,"(фамилия, инициалы, подпись)"]
[null,"Организация   акционерное общество \"Самарская сетевая компания\" "]
[null,"Подразделение ",null,"Нк участок ЦЭС"]
[null,"                      НАРЯД-ДОПУСК №_________для работы в электроустановках"]
[]
[null," Ответственному руководителю работ ",null,null,null,null,{"$f":"REPT(Прога!C10,1)","v":"Матушкин С.Г. гр.V"},null,null,"Допускающему",{"$f":"REPT(Прога!H10,1)","v":"Протопопов А.С. гр.IV"}]
[null,null,null,null,null,null,"(фамилия, инициалы)",null,null,null,"(фамилия, инициалы)"]
[null,"Производителю работ",null,null,{"$f":"REPT(Прога!D10,1)","v":"Протопопов А.С. гр.IV"},null,null,null,"   Наблюдающему",null,"не назначается"]
[null,null,null,null,null,null,null,null,null,null,"(фамилия, инициалы)"]
[null,"с членами бригады",null,null,{"$f":"REPT('Настройки '!B78,1)","v":"Шелашников А.П. гр.IV - рабочий люльки, Колчанов К.В. гр.III - машинст АГП    "}]
[null,{"$f":"REPT('Настройки '!B79,1)","v":""}]
[]
[]
[]
[null,"(фамилия, инициалы)"]
[null,"Поручается",null,{"$f":"REPT('Настройки '!B66,1)","v":"КТП-169 ВЛИ-0,4кВ Ф-3 опора №300/18 ул.Железнодорожная, уч.145к. Подключение по указанию №874"}]
[null,{"$f":"REPT('Настройки '!B67,1)","v":""}]
[]
[]
[null,"Работу начать:       дата",null,null,{"$f":"TODAY()","v":"2017-11-21"},null,"время",{"$f":"REPT(Прога!D7,1)","v":"13.00"}]
[null,"Работу закончить: дата",null,null,{"$f":"TODAY()","v":"2017-11-21"},null,"время",{"$f":"REPT(Прога!I7,1)","v":"18.00"}]
[]
[null,"МЕРОПРИЯТИЯ ПО ПОДГОТОВКЕ РАБОЧИХ МЕСТ К ВЫПОЛНЕНИЮ РАБОТ"]
[null,"Наименование  электроустановок,  в  которых  нужно                   провести  отключения  и  установить  заземления",null,null,null,null,null,null,"Что должно быть отключено и где заземлено"]
[null,1,null,null,null,null,null,null,2]
[null,{"$f":"REPT(Прога!B22,1)","v":"Не требуются"},null,null,null,null,null,null,{"$f":"REPT(Прога!D22,1)","v":"Не требуются"}]
[null,{"$f":"REPT(Прога!B23,1)","v":""},null,null,null,null,null,null,{"$f":"REPT(Прога!D23,1)","v":""}]
[null,{"$f":"REPT(Прога!B24,1)","v":""},null,null,null,null,null,null,{"$f":"REPT(Прога!D24,1)","v":""}]
[null,{"$f":"REPT(Прога!B25,1)","v":""},null,null,null,null,null,null,{"$f":"REPT(Прога!D25,1)","v":""}]
[null,{"$f":"REPT(Прога!B26,1)","v":""},null,null,null,null,null,null,{"$f":"REPT(Прога!D26,1)","v":""}]
[null,{"$f":"REPT(Прога!B27,1)","v":""},null,null,null,null,null,null,{"$f":"REPT(Прога!D27,1)","v":""}]
[null,{"$f":"REPT(Прога!B28,1)","v":""},null,null,null,null,null,null,{"$f":"REPT(Прога!D28,1)","v":""}]
[null,{"$f":"REPT(Прога!B29,1)","v":""},null,null,null,null,null,null,{"$f":"REPT(Прога!D29,1)","v":""}]
[null,{"$f":"REPT(Прога!B30,1)","v":""},null,null,null,null,null,null,{"$f":"REPT(Прога!D30,1)","v":""}]
[null,{"$f":"REPT(Прога!B31,1)","v":""},null,null,null,null,null,null,{"$f":"REPT(Прога!D31,1)","v":""}]
[null,"Отдельные указания:  Лицо ответственное за безопастное проведение работ с грузоподъемными механизмами ППС 131.17Э"]
[null,"ответственныйруководитель работ мастер",null,null,null,null,{"$f":"REPT(Прога!C10,1)","v":"Матушкин С.Г. гр.V"}]
[null,"Запрещается приближение стрелы подъемника к токоведущим частям 0,4 кВ, находящимися под напряжением  на расстояние"]
[null,"менее 1 метра"]
[]
[null,"Наряд выдал: ",null,"дата",{"$f":"TODAY()","v":"2017-11-21"},null,"время",{"$f":"REPT(Прога!C7,1)","v":"12.00"},null,null,null,null,null,"                      "]
[null,"Подпись",null,null,null,null,"Фамилия, инициалы",null,null,{"$f":"REPT(Прога!B10,1)","v":"Матушкин С.Г. гр.V"}]
[null,"Наряд продлил по:        дата ______________",null,null,null,null,"время"]
[null,"Подпись",null,null,null,null,"Фамилия, инициалы"]
[null,"Дата",null,null,"время"]
[null,"РЕГИСТРАЦИЯ ЦЕЛЕВОГО ИНСТРУКТАЖА, ПРОВОДИМОГО ВЫДАЮЩИМ НАРЯД"]
[null,"Целевой инструктаж провел",null,null,null,null,null,null,"Целевой инструктаж получил"]
[null,"Работник, выдавший наряд",null,null,{"$f":"REPT(Прога!B10,1)","v":"Матушкин С.Г. гр.V"},null,null,null,"Ответственный  руководитель  работ (производитель  работ, наблюдающий)",null,{"$f":"REPT(Прога!D10,1)","v":"Протопопов А.С. гр.IV"}]
[null,null,null,null,"(фамилия, инициалы)",null,null,null,null,null,"(фамилия, инициалы)"]
[]
[null,null,null,null,"(подпись)",null,null,null,null,null,"(подпись)"]
[null,"РАЗРЕШЕНИЕ НА ПОДГОТОВКУ РАБОЧИХ МЕСТ И НА ДОПУСК К ВЫПОЛНЕНИЮ РАБОТ"]
[null,"Разрешение на подготовку рабочих мест и на допуск к  выполнению работ выдал                                                  (должность, фамилия или подпись)",null,null,null,null,null,"Дата, время",null,"Подпись работника, получившего разрешение на подготовку рабочих мест                                                         и на допуск к выполнению работ"]
[]
[]
[null,1,null,null,null,null,null,2,null,3]
[null,{"$f":"REPT(Прога!C4,1)","v":"Дежурный диспетчер ЦЭС Куренков В.А. гр.V"},null,null,null,null,null,{"$f":"TODAY()","v":"2017-11-21"}]
[]
[null,{"$f":"REPT('Настройки '!B31,1)","v":" "},null,null,null,null,null,{"$f":"IF('Настройки '!B30,TODAY(),\" \")","v":" "}]

{"sheet":"оборотная","index":2,"n_rows":65,"n_cols":12,"rows_kept":65,"cut":false,"hidden":false,"merged":[[42,4,42,6],[61,6,61,11],[63,6,63,11],[28,1,28,4],[29,1,29,4],[32,6,32,7],[32,8,32,9],[17,9,17,11],[18,9,18,11],[20,9,20,11],[40,9,40,11],[40,4,41,6],[44,4,44,6],[47,4,47,6],[48,4,48,6],[41,9,41,11],[39,7,39,11],[39,1,39,6],[37,1,37,11],[38,1,38,11],[27,1,27,4],[29,6,29,7],[31,6,31,7],[31,8,31,9],[30,6,30,7],[34,8,34,9],[16,9,16,11],[36,8,36,9],[29,8,29,9],[28,6,28,7],[36,6,36,7],[28,8,28,9],[27,8,27,9],[26,6,26,7],[26,8,26,9],[23,1,23,9],[30,1,30,4],[31,1,31,4],[32,1,32,4],[19,9,19,11],[33,1,33,4],[36,1,36,4],[35,1,35,4],[34,1,34,4],[46,4,46,6],[55,1,55,5],[56,1,56,5],[51,1,51,11],[60,1,60,11],[58,1,58,11],[47,9,47,11],[48,9,48,11],[49,9,49,11],[59,9,59,11],[59,1,59,8],[46,9,46,11],[64,6,64,7],[62,6,62,7],[49,4,49,6],[43,4,43,6],[52,1,52,5],[52,6,52,9],[53,1,53,5],[53,6,53,9],[54,1,54,5],[54,6,54,9],[55,6,55,9],[56,6,56,9],[57,6,57,9],[62,8,62,10],[40,1,50,2],[45,4,45,6],[42,9,42,11],[44,9,44,11],[45,9,45,11],[40,7,44,8],[45,7,50,8],[43,9,43,11],[50,9,50,11],[57,1,57,5],[8,1,8,11],[10,1,21,3],[27,6,27,7],[24,6,24,9],[23,10,23,11],[24,1,25,4],[26,1,26,4],[11,9,11,11],[13,9,13,11],[24,5,25,5],[21,9,21,11],[10,9,10,11],[12,4,12,6],[12,9,12,11],[15,9,15,11],[11,4,11,6],[14,9,14,11],[0,1,0,11],[35,8,35,9],[35,6,35,7],[30,8,30,9],[9,7,9,11],[24,11,25,11],[22,1,22,11],[10,7,21,8],[6,8,6,10],[24,10,25,10],[9,1,9,6],[34,6,34,7],[16,4,16,6],[15,4,15,6],[4,1,4,2],[4,4,4,11],[5,3,5,11],[7,7,7,11],[3,1,3,11],[6,1,6,6],[25,8,25,9],[25,6,25,7],[1,1,1,11],[2,1,2,11]]}
[]
[null,"Рабочие места подготовлены. Под напряжением остались: "]
[]
[]
[null,"  Допускающий"]
[null,null,null,"(подпись)"]
[null,"Ответственный руководитель работ (производитель работ или наблюдающий)"]
[null,null,null,null,null,null,null,"(подпись)"]
[null,"РЕГИСТРАЦИЯ ЦЕЛЕВОГО ИНСТРУКТАЖА, ПРОВОДИМОГО ДОПУСКАЮЩИМ ПРИ ПЕРВИЧНОМ ДОПУСКЕ"]
[null,"Целевой  инструктаж  провел",null,null,null,null,null,"Целевой  инструктаж  получил"]
[null,"Допускающий",null,null,null,null,null,"Ответственный  руководитель работ (производитель работ, наблюдающий), члены  бригады  ",null,{"$f":"REPT('Настройки '!D29,1)","v":"Матушкин С.Г. гр.V"}]
[null,null,null,null,{"$f":"REPT(Прога!H10,1)","v":"Протопопов А.С. гр.IV"},null,null,null,null,{"$f":"REPT('Настройки '!D30,1)","v":"Протопопов А.С. гр.IV"}]
[null,null,null,null,"(фамилия, инициалы)",null,null,null,null,{"$f":"REPT('Настройки '!D31,1)","v":"Шелашников А.П. гр.IV"}]
[null,null,null,null,null,null,null,null,null,{"$f":"REPT('Настройки '!D32,1)","v":"Колчанов К.В. гр.III"}]
[null,null,null,null,null,null,null,null,null,{"$f":"REPT('Настройки '!D33,1)","v":" "}]
["подпись",null,null,null,"(подпись)",null,null,null,null,{"$f":"REPT('Настройки '!D34,1)","v":" "}]
[]
[]
[null,null,null,null,null,null,null,null,null,""]
[null,null,null,null,null,null,null,null,null,""]
[]
[null,null,null,null,null,null,null,null,null,"  (фамилия, инициалы, подпись) "]
[null,"ЕЖЕДНЕВНЫЙ ДОПУСК К РАБОТЕ И ВРЕМЯ ЕЕ ОКОНЧАНИЯ"]
[null,"Бригада  получила  целевой  инструктаж  и  допущена  на  подготовленное  рабочее место",null,null,null,null,null,null,null,null,"Работа  закончена,  бригада  удалена"]
[null,"Наименование рабочего места",null,null,null,"Дата,  время","Подписи                                                                  (подпись, фамилия,  инициалы)",null,null,null,"Дата,  время","Подпись производителя  работ (наблюдающего)                              (подпись, фамилия, инициалы)"]
[null,null,null,null,null,null,"Допускающего",null,"Производителя работ\n   (наблюдающего)"]
[null,1,null,null,null,2,3,null,4,null,5,6]
[null,{"$f":"REPT('Настройки '!B47,1)","v":"ТП-169 ВЛИ-0,4кВ Ф-3 "},null,null,null,{"$f":"TODAY()","v":"2017-11-21"},null,null,null,null,{"$f":"TODAY()","v":"2017-11-21"}]
[null,{"$f":"REPT('Настройки '!B48,1)","v":"№300/18  "},null,null,null,null,{"$f":"REPT(Прога!H10,1)","v":"Протопопов А.С. гр.IV"},null,{"$f":"REPT(Прога!D10,1)","v":"Протопопов А.С. гр.IV"},null,null,{"$f":"REPT(Прога!D10,1)","v":"Протопопов А.С. гр.IV"}]
[null,{"$f":"REPT('Настройки '!B49,1)","v":""}]
[null,{"$f":"REPT('Настройки '!B50,1)","v":""}]
[null,{"$f":"REPT('Настройки '!B51,1)","v":""}]
[null,{"$f":"REPT('Настройки '!B52,1)","v":""}]
[null,{"$f":"REPT('Настройки '!B53,1)","v":""}]
[null,{"$f":"REPT('Настройки '!B54,1)","v":""}]
[null,{"$f":"REPT('Настройки '!B55,1)","v":""}]
[null,{"$f":"REPT('Настройки '!B56,1)","v":""}]
[null,"РЕГИСТРАЦИЯ ЦЕЛЕВОГО ИНСТРУКТАЖА, ПРОВОДИМОГО ОТВЕТСТВЕННЫМ РУКОВОДИТЕЛЕМ"]
[null,"РАБОТ (ПРОИЗВОДИТЕЛЕМ РАБОТ, НАБЛЮДАЮЩИМ)"]
[null,"Целевой  инструктаж  провел",null,null,null,null,null,"Целевой  инструктаж  получил"]
[null,"Ответственный  руководитель\n\n производитель работ, (наблюдающий)",null,null,{"$f":"REPT(Прога!C10,1)","v":"Матушкин С.Г. гр.V"},null,null,"Производитель работ     (наблюдающий )            Члены бригады",null,{"$f":"REPT(Прога!D10,1)","v":"Протопопов А.С. гр.IV"}]
[null,null,null,null,null,null,null,null,null,{"$f":"REPT(Прога!B12,1)","v":"Шелашников А.П. гр.IV"}]
[null,null,null,null,null,null,null,null,null,{"$f":"REPT(Прога!C12,1)","v":"Колчанов К.В. гр.III"}]
[null,null,null,null,"(фамилия, инициалы,подпись)",null,null,null,null,{"$f":"REPT(Прога!D12,1)","v":" "}]
[null,null,null,null,"_____________________",null,null,null,null,{"$f":"REPT(Прога!I12,1)","v":" "}]
[null,null,null,null,null,null,null,"      Члены бригады"]
[]
[null,null,null,null,{"$f":"REPT(Прога!D10,1)","v":"Протопопов А.С. гр.IV"},null,null,null,null,{"$f":"REPT(Прога!B12,1)","v":"Шелашников А.П. гр.IV"}]
[null,null,null,null,null,null,null,null,null,{"$f":"REPT(Прога!C12,1)","v":"Колчанов К.В. гр.III"}]
[null,null,null,null,"(фамилия, инициалы,подпись)",null,null,null,null,{"$f":"REPT(Прога!D12,1)","v":" "}]
[null,null,null,null,null,null,null,null,null,{"$f":"REPT(Прога!I12,1)","v":" "}]
[null,"ИЗМЕНЕНИЯ В СОСТАВЕ БРИГАДЫ"]
[null,"Введен в состав бригады                       (фамилия, инициалы, группа)",null,null,null,null,"Выведен из состава бригады                 (фамилия, инициалы, группа)",null,null,null,"Дата, время "," Разрешил                                         (подпись, фамилия, инициалы)    "]
[null,1,null,null,null,null,2,null,null,null,3,4]
[]
[]
[]
[]
[null,{"$f":"REPT('Настройки '!B84,1)","v":"Работа полностью закончена, бригада удалена, заземления, установленные бригадой, сняты, сообщено (кому)"}]
[null,{"$f":"REPT(Прога!C4,1)","v":"Дежурный диспетчер ЦЭС Куренков В.А. гр.V"},null,null,null,null,null,null,null,"Дата                                                   время"]
[null,"             (должность)                                         (фамилия, инициалы)"]
[null,"Производитель работ (наблюдающий)",null,null,null,null,{"$f":"REPT(Прога!D10,1)","v":"Протопопов А.С. гр.IV"}]
[null,null,null,null,null,null,null,null,"(подпись, фамилия, инициалы)"]
[null,"Ответственный руководитель работ",null,null,null,null,{"$f":"REPT(Прога!C10,1)","v":"Матушкин С.Г. гр.V"}]
[null,null,null,null,null,null,"                   ",null,null,"   (подпись,фамилия, инициалы)"]

{"sheet":"Настройки ","index":3,"n_rows":116,"n_cols":6,"rows_kept":116,"cut":false,"hidden":false,"merged":[[84,1,84,4],[85,1,85,4],[83,1,83,4],[79,1,79,4],[67,1,67,4],[78,1,78,4],[77,1,77,4],[76,1,76,4],[40,1,40,4],[41,1,42,4],[73,1,73,4],[74,1,74,4],[75,1,75,4],[63,1,63,4],[65,1,65,4],[66,1,66,4],[71,1,72,4],[61,1,61,4],[62,1,62,4],[59,1,60,4],[58,1,58,4],[57,1,57,4],[64,1,64,4],[69,1,69,4],[70,1,70,4]]}
[]
[]
[null,"Члены бригады","Производители,допускающие","Выдающий наряд","Ответственные за подъемник","Диспетчера"]
[null," "," "," "," "," "]
[null,"Абросимов Д.А. гр.IV","Абросимов Д.А. гр.IV","Анненков А.Н. гр.V","Не назначается","Дежурный диспетчер ЦЭС Ершов С.В. гр.V"]
[null,"Бекетов Е.В. гр.III","Божченко С.А. гр.V","Божченко С.А. гр.V","Анненков А.Н. гр.V","Дежурный диспетчер ЦЭС Куренков В.А. гр.V"]
[null,"Веткин В.В. гр.III","Голушков С.И. гр.IV","Кишинец М.А. гр.V","Божченко С.А. гр.V","Дежурный диспетчер ЦЭС Назаров А.В. гр.V"]
[null,"Голушков С.И. гр.IV","Кишинец М.А. гр.V","Козачухненко А.В. гр.V","Кишинец М.А. гр.V","Дежурный диспетчер ЦЭС Ципин С.В. гр.V"]
[null,"Колчанов К.В. гр.III","Козачухненко А.В. гр.V","Козачухненко Л.В. гр.V","Козачухненко А.В. гр.V","ИО Дежурный диспетчер ЦЭС Божченко С.А. гр.V"]
[null,"Краснов В.В. гр.IV","Королёв С.В. гр.V","Королёв С.В. гр.V","Козачухненко Л.В. гр.V","ИО Дежурный диспетчер ЦЭС Кишинец М.А. гр.V"]
[null,"Курганский Н.В. гр.IV","Краснов В.В. гр.IV","Матушкин С.Г. гр.V","Королёв С.В. гр.V","ИО Дежурный диспетчер ЦЭС Королёв С.В. гр.V"]
[null,"Малов А.Н. гр.IV","Курганский Н.В. гр.IV","Стрелковский П.П. гр.V ","Матушкин С.Г. гр.V","ИО Дежурный диспетчер ЦЭС Матушкин С.Г. гр.V"]
[null,"Манышкин А.В. гр.IV","Малов А.Н. гр.IV","Ершов С.В. гр.V","Стрелковский П.П. гр.V "]
[null,"Павлов Н.Н. гр.IV","Манышкин А.В. гр.IV","Куренков В.А. гр.V"]
[null,"Протопопов А.С. гр.IV","Матушкин С.Г. гр.V","Назаров А.В. гр.V"]
[null,"Савин А.Г. гр.IV","Протопопов А.С. гр.IV","Ципин С.В. гр.V"]
[null,"Семин А.Г. гр.IV","Савин А.Г. гр.IV"]
[null,"Сухов А.О. гр.IV","Семин А.Г. гр.IV"]
[null,"Титов А.В. гр.IV","Сухов А.О. гр.IV"]
[null,"Фурсов О.В. гр.III","Титов А.В. гр.IV"]
[null,"Цыпин В.Ф. гр.IV","Цыпин В.Ф. гр.IV"]
[null,"Чугуров С.М. гр.III","Шелашников А.П. гр.IV"]
[null,"Шадрин В.Н. гр.III","Шигапов Р.Р. гр.IV"]
[null,"Шелашников А.П. гр.IV","Юминов В.П. гр.III"]
[null,"Шигапов Р.Р. гр.IV"]
[null,"Юминов В.П. гр.III"]
[null," Тех.Мер.","Ответственный за комплектацию","Целевой иструктаж получил"]
[null,"Требуются","Не назначается",{"$f":"EXACT(Прога!C10,C28)","v":false}]
[null,"Не требуются",null,{"$f":"IF(EXACT(E5,Прога!C10),Прога!D10,IF(D35,Прога!D10,Прога!C10))","v":"Матушкин С.Г. гр.V"}]
[null,{"$f":"EXACT(Прога!B7,B28)","v":false},{"$f":"EXACT(C28,Прога!C10)","v":false},{"$f":"IF(EXACT(D29,Прога!D10),Прога!B12,Прога!D10)","v":"Протопопов А.С. гр.IV"}]
[null,{"$f":"IF(B30,Прога!C4,\" \")","v":" "},{"$f":"IF(C30,Прога!D10,Прога!C10)","v":"Матушкин С.Г. гр.V"},{"$f":"IF(EXACT(D30,Прога!B12),Прога!C12,Прога!B12)","v":"Шелашников А.П. гр.IV"}]
[null,{"$f":"Лицевая!H62=IF(B30,TODAY(),\" \")","v":true}," ",{"$f":"IF(EXACT(D31,Прога!C12),Прога!D12,Прога!C12)","v":"Колчанов К.В. гр.III"}]
[null,null,null,{"$f":"IF(EXACT(D32,Прога!D12),Прога!I12,Прога!D12)","v":" "}]
[null,null,null,{"$f":"IF(EXACT(D33,Прога!I12),D36,Прога!I12)","v":" "}]
[null,null,null,{"$f":"Прога!C10=Прога!D10","v":false}]
[null,null,null," "]
[]
[]
[]
[null,null,null,null,"    "]
[null,"Место работы"]
[null,{"$f":"REPT(Прога!B19&\" \",1)","v":"ТП-169 ВЛИ-0,4кВ Ф-3 опора    №300/18  "}]
[]
[null,23,"число знаков в строке"]
[null,1,"какое то число "]
[null,"вариант 1","вариант2(запасной)"]
[null,{"$f":"MID(MID(B42,SUM(LEN(B45:B45)),B44),1,MAX((MID(MID(B42,SUM(LEN(B45:B45)),B44),ROW($A1:$L132),1)=\" \")*ROW($A1:$L132)))","v":"ТП-169 ВЛИ-0,4кВ Ф-3 "},{"$f":"MID(MID($B$42&\" \",SUM(LEN($B$45:B45)),B44),1,MAX((MID(MID($B$42&\" \",SUM(LEN($B$45:B45)),B44),ROW($A$1:$L$132),1)=\" \")*ROW($A$1:$L$132)))","v":"ТП-169 ВЛИ-0,4кВ Ф-3 "}]
[null,{"$f":"MID(MID(B42,SUM(LEN(B45:B47)),B44),1,MAX((MID(MID(B42,SUM(LEN(B45:B47)),B44),ROW($A1:$L132),1)=\" \")*ROW($A1:$L132)))","v":"№300/18  "},{"$f":"MID(MID($B$42&\" \",SUM(LEN($B$45:B47)),B44),1,MAX((MID(MID($B$42&\" \",SUM(LEN($B$45:B47)),B44),ROW($A$1:$L$132),1)=\" \")*ROW($A$1:$L$132)))","v":"№300/18   "}]
[null,{"$f":"MID(MID(B42,SUM(LEN(B45:B48)),B44),1,MAX((MID(MID(B42,SUM(LEN(B45:B48)),B44),ROW($A1:$L132),1)=\" \")*ROW($A1:$L132)))","v":""},{"$f":"MID(MID($B$42&\" \",SUM(LEN($B$45:B48)),B44),1,MAX((MID(MID($B$42&\" \",SUM(LEN($B$45:B48)),B44),ROW($A$1:$L$132),1)=\" \")*ROW($A$1:$L$132)))","v":" "}]
[null,{"$f":"MID(MID(B42,SUM(LEN(B45:B49)),B44),1,MAX((MID(MID(B42,SUM(LEN(B45:B49)),B44),ROW($A1:$L132),1)=\" \")*ROW($A1:$L132)))","v":""},{"$f":"MID(MID($B$42&\" \",SUM(LEN($B$45:B49)),B44),1,MAX((MID(MID($B$42&\" \",SUM(LEN($B$45:B49)),B44),ROW($A$1:$L$132),1)=\" \")*ROW($A$1:$L$132)))","v":" "}]
[null,{"$f":"MID(MID(B42,SUM(LEN(B45:B50)),B44),1,MAX((MID(MID(B42,SUM(LEN(B45:B50)),B44),ROW($A1:$L132),1)=\" \")*ROW($A1:$L132)))","v":""},{"$f":"MID(MID($B$42&\" \",SUM(LEN($B$45:B50)),B44),1,MAX((MID(MID($B$42&\" \",SUM(LEN($B$45:B50)),B44),ROW($A$1:$L$132),1)=\" \")*ROW($A$1:$L$132)))","v":" "}]
[null,{"$f":"MID(MID(B42,SUM(LEN(B45:B51)),B44),1,MAX((MID(MID(B42,SUM(LEN(B45:B51)),B44),ROW($A1:$L132),1)=\" \")*ROW($A1:$L132)))","v":""},{"$f":"MID(MID($B$42&\" \",SUM(LEN($B$45:B51)),B44),1,MAX((MID(MID($B$42&\" \",SUM(LEN($B$45:B51)),B44),ROW($A$1:$L$132),1)=\" \")*ROW($A$1:$L$132)))","v":" "}]
[null,{"$f":"MID(MID(B42,SUM(LEN(B45:B52)),B44),1,MAX((MID(MID(B42,SUM(LEN(B45:B52)),B44),ROW($A1:$L132),1)=\" \")*ROW($A1:$L132)))","v":""},{"$f":"MID(MID($B$42&\" \",SUM(LEN($B$45:B52)),B44),1,MAX((MID(MID($B$42&\" \",SUM(LEN($B$45:B52)),B44),ROW($A$1:$L$132),1)=\" \")*ROW($A$1:$L$132)))","v":" "}]
[null,{"$f":"MID(MID(B42,SUM(LEN(B45:B53)),B44),1,MAX((MID(MID(B42,SUM(LEN(B45:B53)),B44),ROW($A1:$L132),1)=\" \")*ROW($A1:$L132)))","v":""},{"$f":"MID(MID($B$42&\" \",SUM(LEN($B$45:B53)),B44),1,MAX((MID(MID($B$42&\" \",SUM(LEN($B$45:B53)),B44),ROW($A$1:$L$132),1)=\" \")*ROW($A$1:$L$132)))","v":" "}]
[null,{"$f":"MID(MID(B42,SUM(LEN(B45:B54)),B44),1,MAX((MID(MID(B42,SUM(LEN(B45:B54)),B44),ROW($A1:$L132),1)=\" \")*ROW($A1:$L132)))","v":""},{"$f":"MID(MID($B$42&\" \",SUM(LEN($B$45:B54)),B44),1,MAX((MID(MID($B$42&\" \",SUM(LEN($B$45:B54)),B44),ROW($A$1:$L$132),1)=\" \")*ROW($A$1:$L$132)))","v":" "}]
[null,{"$f":"MID(MID(B42,SUM(LEN(B45:B55)),B44),1,MAX((MID(MID(B42,SUM(LEN(B45:B55)),B44),ROW($A1:$L132),1)=\" \")*ROW($A1:$L132)))","v":""},{"$f":"MID(MID($B$42&\" \",SUM(LEN($B$45:B55)),B44),1,MAX((MID(MID($B$42&\" \",SUM(LEN($B$45:B55)),B44),ROW($A$1:$L$132),1)=\" \")*ROW($A$1:$L$132)))","v":" "}]
[]
[null,"поручается"]
[]
[null,{"$f":"REPT(Прога!B16,1)","v":"КТП-169 ВЛИ-0,4кВ Ф-3 опора №300/18 ул.Железнодорожная, уч.145к. Подключение по указанию №874"}]
[]
[]
[null,{"$f":"LEFT(B60,95)","v":"КТП-169 ВЛИ-0,4кВ Ф-3 опора №300/18 ул.Железнодорожная, уч.145к. Подключение по указанию №874"}]
[null,{"$f":"IF(LEFT(B60)>95,MID(B60,96,95),\"\")","v":""}]
[]
[null,{"$f":"IF(LEN(B60)<95,B60,LEFTB(B60,SEARCH(\" \",B60,92)-1))","v":"КТП-169 ВЛИ-0,4кВ Ф-3 опора №300/18 ул.Железнодорожная, уч.145к. Подключение по указанию №874"}]
[null,{"$f":"IF(LEN(B60)>LEN(B66),IF(LEN(B66)+95>LEN(B60),RIGHT(B60,LEN(B60)-LEN(B66)-1),MID(B60,LEN(B66)+2,SEARCH(\" \",B60,190)-LEN(B66)-1)),\"\")","v":""}]
[]
[]
[null,"члены бригады"]
[]
[null,{"$f":"CONCATENATE(Прога!B12,Прога!B14,B91,Прога!C12,Прога!C14,C91,Прога!D12,Прога!D14,D91,Прога!I12,Прога!I14)","v":"Шелашников А.П. гр.IV - рабочий люльки, Колчанов К.В. гр.III - машинст АГП    "}]
[]
[]
[null,{"$f":"LEFT(B72,95)","v":"Шелашников А.П. гр.IV - рабочий люльки, Колчанов К.В. гр.III - машинст АГП    "}]
[null,{"$f":"IF(LEFT(B72)>95,MID(B72,96,95),\"\")","v":""}]
[]
[null,{"$f":"IF(LEN(B72)<95,B72,LEFTB(B72,SEARCH(\" \",B72,92)-1))","v":"Шелашников А.П. гр.IV - рабочий люльки, Колчанов К.В. гр.III - машинст АГП    "}]
[null,{"$f":"IF(LEN(B72)>LEN(B78),IF(LEN(B78)+95>LEN(B72),RIGHT(B72,LEN(B72)-LEN(B78)-1),MID(B72,LEN(B78)+2,SEARCH(\" \",B72,190)-LEN(B78)-1)),\"\")","v":""}]
[]
[]
[]
[null,"Не требуются"]
[null,"Работа полностью закончена, бригада удалена, заземления, установленные бригадой, сняты, сообщено (кому)"]
[null,"Работа полностью закончена, бригада удалена, заземления, установленные бригадой, сняты, сообщено (кому)…."]
[null,"Работа полностью закончена, бригада удалена, заземления, установленные бригадой, сняты, сообщено (кому)"]
[]
[]
[]
[null,{"$f":"EXACT(Прога!C12,E91)","v":false},{"$f":"EXACT(Прога!D12,E91)","v":true},{"$f":"EXACT(Прога!I12,E91)","v":true},"пустая клетка для формылы"]
[null,{"$f":"IF(B90,\" \",\", \")","v":", "},{"$f":"IF(C90,\" \",\", \")","v":" "},{"$f":"IF(D90,\" \",\", \")","v":" "}," "]
[]
[null,null,"07.00",null," - машинст АГП"]
[null,null,"08.00",null," - рабочий люльки"]
[null,null,"09.00"]
[null,null,"10.00"]
[null,null,"11.00"]
[null,null,"12.00"]
[null,null,"13.00"]
[null,null,"14.00"]
[null,null,"15.00"]
[null,null,"16.00"]
[null,null,"17.00"]
[null,null,"18.00"]
[null,null,"19.00"]
[null,null,"20.00"]
[null,null,"21.00"]
[null,null,"22.00"]
[null,null,"23.00"]
[null,null,"00.05"]
[null,null,"01.00"]
[null,null,"02.00"]
[null,null,"03.00"]
[null,null,"04.00"]
[null,null,"05.00"]
[null,null,"06.00"]